[Event "GMT Biel Chess Festival classic"]
[Site "Biel/Bienne, Switzerland"]
[Date "????.??.??"]
[Round "2.2"]
[White "Anton Guijarro, David"]
[Black "Wojtaszek, Radoslaw"]
[Result "1/2-1/2"]
[TimeControl "100 minutes for the first 40 moves + 50 minutes for the next 20 moves + 15 minutes for the rest of the game with an addition of 30 seconds per move starting from move one"]
[WhiteTitle "GM"]
[BlackTitle "GM"]
[WhiteFideId "2285525"]
[BlackFideId "1118358"]
[WhiteElo "2703"]
[BlackElo "2719"]

1. e4 {[%clk 01:30:53]} {[%emt 00:00:05]} c5 {[%clk 01:30:55]} {[%emt
00:00:06]} 2. Nf3 {[%clk 01:31:07]} {[%emt 00:00:16]} d6 {[%clk 01:31:19]}
{[%emt 00:00:06]} 3. d4 {[%clk 01:31:20]} {[%emt 00:00:17]} cxd4 {[%clk
01:31:42]} {[%emt 00:00:07]} 4. Qxd4 {[%clk 01:31:38]} {[%emt 00:00:11]} Nf6
{[%clk 01:31:58]} {[%emt 00:00:13]} 5. Bg5 {[%clk 01:31:29]} {[%emt 00:00:40]}
Nc6 {[%clk 01:31:55]} {[%emt 00:00:32]} 6. Bb5 {[%clk 01:30:50]} {[%emt
00:01:10]} Bd7 {[%clk 01:32:12]} {[%emt 00:00:14]} 7. Qd3 {[%clk 01:29:57]}
{[%emt 00:01:22]} Ng4 {[%clk 01:32:11]} {[%emt 00:00:30]} 8. Nc3 {[%clk
01:29:11]} {[%emt 00:01:17]} h6 {[%clk 01:28:00]} {[%emt 00:04:41]} 9. Bf4
{[%clk 01:28:55]} {[%emt 00:00:45]} g5 {[%clk 01:27:16]} {[%emt 00:01:14]} 10.
Bxc6 {[%clk 01:27:59]} {[%emt 00:01:26]} Bxc6 {[%clk 01:17:19]} {[%emt
00:10:27]} 11. Bd2 {[%clk 01:26:55]} {[%emt 00:01:34]} Bg7 {[%clk 01:13:51]}
{[%emt 00:03:59]} 12. h3 {[%clk 01:25:37]} {[%emt 00:01:47]} Ne5 {[%clk
01:13:02]} {[%emt 00:01:19]} 13. Nxe5 {[%clk 01:25:35]} {[%emt 00:00:32]} Bxe5
{[%clk 01:13:28]} {[%emt 00:00:05]} 14. O-O-O {[%clk 01:24:13]} {[%emt
00:01:52]} Qb6 {[%clk 01:09:50]} {[%emt 00:04:08]} 15. Be3 {[%clk 01:17:23]}
{[%emt 00:07:20]} Qa5 {[%clk 01:09:07]} {[%emt 00:01:13]} 16. Bd4 {[%clk
01:16:31]} {[%emt 00:01:22]} f6 {[%clk 01:05:45]} {[%emt 00:03:52]} 17. Kb1
{[%clk 01:12:24]} {[%emt 00:04:36]} Bxd4 {[%clk 00:58:52]} {[%emt 00:07:23]} 18.
Qxd4 {[%clk 01:12:35]} {[%emt 00:00:19]} Qe5 {[%clk 00:59:10]} {[%emt
00:00:12]} 19. Qd2 {[%clk 01:04:25]} {[%emt 00:08:41]} h5 {[%clk 00:49:50]}
{[%emt 00:09:49]} 20. h4 {[%clk 00:52:56]} {[%emt 00:11:58]} O-O-O {[%clk
00:42:15]} {[%emt 00:08:05]} 21. f3 {[%clk 00:41:55]} {[%emt 00:11:31]} Kb8
{[%clk 00:42:07]} {[%emt 00:00:39]} 22. Nd5 {[%clk 00:40:14]} {[%emt 00:02:11]}
g4 {[%clk 00:36:35]} {[%emt 00:06:01]} 23. Rhe1 {[%clk 00:37:41]} {[%emt
00:03:03]} gxf3 {[%clk 00:36:53]} {[%emt 00:00:13]} 24. gxf3 {[%clk 00:38:06]}
{[%emt 00:00:05]} Rhg8 {[%clk 00:35:29]} {[%emt 00:01:54]} 25. b3 {[%clk
00:25:41]} {[%emt 00:12:55]} Rg3 {[%clk 00:32:45]} {[%emt 00:03:14]} 26. Re3
{[%clk 00:24:39]} {[%emt 00:01:32]} Rdg8 {[%clk 00:32:00]} {[%emt 00:01:15]} 27.
Nb4 {[%clk 00:22:39]} {[%emt 00:02:30]} Bd7 {[%clk 00:31:09]} {[%emt 00:01:20]}
28. Nd3 {[%clk 00:20:31]} {[%emt 00:02:38]} Qd4 {[%clk 00:28:23]} {[%emt
00:03:16]} 29. Nf4 {[%clk 00:17:10]} {[%emt 00:03:51]} Qxd2 {[%clk 00:25:18]}
{[%emt 00:03:35]} 30. Rxd2 {[%clk 00:17:36]} {[%emt 00:00:04]} Rg1+ {[%clk
00:24:17]} {[%emt 00:01:31]} 31. Kb2 {[%clk 00:18:00]} {[%emt 00:00:06]} Rh1
{[%clk 00:24:28]} {[%emt 00:00:18]} 32. Nd5 {[%clk 00:13:16]} {[%emt 00:05:15]}
Rg7 {[%clk 00:24:30]} {[%emt 00:00:27]} 33. Ree2 {[%clk 00:12:58]} {[%emt
00:00:49]} Rxh4 {[%clk 00:21:43]} {[%emt 00:03:17]} 34. Rg2 {[%clk 00:12:59]}
{[%emt 00:00:28]} Rxg2 {[%clk 00:22:07]} {[%emt 00:00:06]} 35. Rxg2 {[%clk
00:13:26]} {[%emt 00:00:03]} Be6 {[%clk 00:22:31]} {[%emt 00:00:07]} 36. Nxe7
{[%clk 00:08:45]} {[%emt 00:05:11]} Rf4 {[%clk 00:16:12]} {[%emt 00:06:48]} 37.
Rh2 {[%clk 00:08:45]} {[%emt 00:00:30]} Rxf3 {[%clk 00:11:36]} {[%emt
00:05:07]} 38. Rxh5 {[%clk 00:08:58]} {[%emt 00:00:17]} Rf4 {[%clk 00:11:14]}
{[%emt 00:00:52]} 39. Nd5 {[%clk 00:07:09]} {[%emt 00:02:19]} Bxd5 {[%clk
00:09:58]} {[%emt 00:01:46]} 40. exd5 {[%clk 00:07:28]} {[%emt 00:00:12]} b5
{[%clk 00:10:21]} {[%emt 00:00:07]} 41. Rh7 {[%emt 00:03:08]} 1/2-1/2

[Event "GMT Biel Chess Festival classic"]
[Site "Biel/Bienne, Switzerland"]
[Date "????.??.??"]
[Round "2.4"]
[White "Naiditsch, Arkadij"]
[Black "Pentala, Harikrishna"]
[Result "1/2-1/2"]
[TimeControl "100 minutes for the first 40 moves + 50 minutes for the next 20 moves + 15 minutes for the rest of the game with an addition of 30 seconds per move starting from move one"]
[WhiteTitle "GM"]
[BlackTitle "GM"]
[WhiteFideId "4650891"]
[BlackFideId "5007003"]
[WhiteElo "2626"]
[BlackElo "2719"]

1. e4 {[%clk 01:30:56]} {[%emt 00:00:03]} c5 {[%clk 01:30:45]} {[%emt
00:00:15]} 2. Nf3 {[%clk 01:31:18]} {[%emt 00:00:08]} e6 {[%clk 01:31:10]}
{[%emt 00:00:05]} 3. d4 {[%clk 01:31:38]} {[%emt 00:00:10]} cxd4 {[%clk
01:31:34]} {[%emt 00:00:06]} 4. Nxd4 {[%clk 01:32:01]} {[%emt 00:00:06]} Nc6
{[%clk 01:31:53]} {[%emt 00:00:11]} 5. Nc3 {[%clk 01:32:21]} {[%emt 00:00:10]}
Qc7 {[%clk 01:32:09]} {[%emt 00:00:15]} 6. Be3 {[%clk 01:32:20]} {[%emt
00:00:31]} a6 {[%clk 01:32:28]} {[%emt 00:00:11]} 7. a3 {[%clk 01:31:46]}
{[%emt 00:01:05]} b5 {[%clk 01:31:52]} {[%emt 00:01:05]} 8. Nxc6 {[%clk
01:26:09]} {[%emt 00:06:07]} Qxc6 {[%clk 01:31:48]} {[%emt 00:00:34]} 9. Qd4
{[%clk 01:26:18]} {[%emt 00:00:22]} Bb7 {[%clk 01:26:31]} {[%emt 00:05:47]} 10.
O-O-O {[%clk 01:25:24]} {[%emt 00:01:24]} Rc8 {[%clk 01:24:38]} {[%emt
00:02:24]} 11. Bd3 {[%clk 01:20:58]} {[%emt 00:04:56]} Qc5 {[%clk 01:13:45]}
{[%emt 00:11:23]} 12. Rhe1 {[%clk 01:10:34]} {[%emt 00:10:53]} Qxd4 {[%clk
01:12:03]} {[%emt 00:02:12]} 13. Bxd4 {[%clk 01:10:58]} {[%emt 00:00:07]} Ne7
{[%clk 01:12:04]} {[%emt 00:00:29]} 14. f4 {[%clk 01:01:17]} {[%emt 00:10:11]}
b4 {[%clk 01:00:22]} {[%emt 00:12:12]} 15. axb4 {[%clk 00:55:40]} {[%emt
00:06:07]} Nc6 {[%clk 00:58:37]} {[%emt 00:02:15]} 16. Bf1 {[%clk 00:54:58]}
{[%emt 00:01:11]} Nxb4 {[%clk 00:57:38]} {[%emt 00:01:29]} 17. Kb1 {[%clk
00:49:54]} {[%emt 00:05:34]} Rg8 {[%clk 00:48:45]} {[%emt 00:09:23]} 18. h4
{[%clk 00:45:16]} {[%emt 00:05:08]} h6 {[%clk 00:45:35]} {[%emt 00:03:40]} 19.
h5 {[%clk 00:40:40]} {[%emt 00:05:06]} Be7 {[%clk 00:39:17]} {[%emt 00:06:48]}
20. Re3 {[%clk 00:35:12]} {[%emt 00:05:58]} Bh4 {[%clk 00:36:59]} {[%emt
00:02:49]} 21. Rh3 {[%clk 00:32:27]} {[%emt 00:03:15]} Bf6 {[%clk 00:35:38]}
{[%emt 00:01:50]} 22. Rg3 {[%clk 00:30:02]} {[%emt 00:02:55]} Bxd4 {[%clk
00:35:18]} {[%emt 00:00:50]} 23. Rxd4 {[%clk 00:30:25]} {[%emt 00:00:07]} Nc6
{[%clk 00:35:05]} {[%emt 00:00:43]} 24. Ra4 {[%clk 00:23:40]} {[%emt 00:07:15]}
Ke7 {[%clk 00:27:32]} {[%emt 00:08:03]} 25. Bxa6 {[%clk 00:23:43]} {[%emt
00:00:27]} Bxa6 {[%clk 00:27:54]} {[%emt 00:00:07]} 26. Rxa6 {[%clk 00:24:09]}
{[%emt 00:00:05]} g6 {[%clk 00:28:15]} {[%emt 00:00:09]} 27. hxg6 {[%clk
00:21:16]} {[%emt 00:03:23]} Rxg6 {[%clk 00:28:34]} {[%emt 00:00:10]} 28. Rxg6
{[%clk 00:21:06]} {[%emt 00:00:40]} fxg6 {[%clk 00:28:55]} {[%emt 00:00:09]} 29.
Kc1 {[%clk 00:16:25]} {[%emt 00:05:11]} Rf8 {[%clk 00:18:58]} {[%emt 00:10:27]}
30. Ne2 {[%clk 00:16:43]} {[%emt 00:00:12]} e5 {[%clk 00:19:11]} {[%emt
00:00:17]} 31. g3 {[%clk 00:15:13]} {[%emt 00:02:00]} exf4 {[%clk 00:17:20]}
{[%emt 00:02:22]} 32. Nxf4 {[%clk 00:14:19]} {[%emt 00:01:23]} Kf7 {[%clk
00:17:42]} {[%emt 00:00:08]} 33. b4 {[%clk 00:04:44]} {[%emt 00:10:06]} Nxb4
{[%clk 00:15:36]} {[%emt 00:02:36]} 34. Rxg6 {[%clk 00:02:22]} {[%emt
00:02:52]} Rc8 {[%clk 00:15:04]} {[%emt 00:01:01]} 35. Rxh6 {[%clk 00:02:05]}
{[%emt 00:00:48]} Rxc2+ {[%clk 00:14:53]} {[%emt 00:00:41]} 36. Kd1 {[%clk
00:02:32]} {[%emt 00:00:03]} Rc4 {[%clk 00:14:00]} {[%emt 00:01:22]} 37. e5
{[%clk 00:02:21]} {[%emt 00:00:42]} Rd4+ {[%clk 00:12:49]} {[%emt 00:01:40]} 38.
Ke2 {[%clk 00:02:43]} {[%emt 00:00:08]} Re4+ {[%clk 00:12:51]} {[%emt
00:00:27]} 39. Kf3 {[%clk 00:03:08]} {[%emt 00:00:06]} Rxe5 {[%clk 00:12:33]}
{[%emt 00:00:49]} 40. Rh7+ {[%clk 00:03:34]} {[%emt 00:00:04]} Ke8 {[%clk
00:12:13]} {[%emt 00:00:49]} 41. Rh8+ {[%clk 00:02:27]} {[%emt 00:01:38]} Kf7
{[%clk 00:12:33]} {[%emt 00:00:10]} 42. Rh7+ {[%clk 00:02:02]} {[%emt
00:00:54]} Ke8 {[%clk 00:12:57]} {[%emt 00:00:06]} 43. Rh8+ {[%clk 00:02:07]}
{[%emt 00:00:26]} Kf7 {[%clk 00:13:22]} {[%emt 00:00:05]} 44. Rh7+ {[%clk
00:02:31]} {[%emt 00:00:05]} 1/2-1/2

[Event "GMT Biel Chess Festival classic"]
[Site "Biel/Bienne, Switzerland"]
[Date "????.??.??"]
[Round "3.1"]
[White "Pentala, Harikrishna"]
[Black "Studer, NoÃ«l"]
[Result "1/2-1/2"]
[TimeControl "90 minutes for the first 40 moves + 30 minutes for the rest of the game with an addition of 30 seconds per move starting from move one"]
[WhiteTitle "GM"]
[BlackTitle "GM"]
[WhiteFideId "5007003"]
[BlackFideId "1319620"]
[WhiteElo "2719"]
[BlackElo "2437"]

1. d4 {[%clk 01:30:56]} {[%emt 00:00:04]} Nf6 {[%clk 01:30:55]} {[%emt
00:00:05]} 2. c4 {[%clk 01:31:15]} {[%emt 00:00:12]} e6 {[%clk 01:31:21]}
{[%emt 00:00:05]} 3. Nc3 {[%clk 01:31:39]} {[%emt 00:00:05]} Bb4 {[%clk
01:31:46]} {[%emt 00:00:04]} 4. e3 {[%clk 01:31:40]} {[%emt 00:00:29]} O-O
{[%clk 01:32:10]} {[%emt 00:00:07]} 5. Nf3 {[%clk 01:32:04]} {[%emt 00:00:05]}
d5 {[%clk 01:32:26]} {[%emt 00:00:15]} 6. Bd2 {[%clk 01:32:26]} {[%emt
00:00:08]} b6 {[%clk 01:32:37]} {[%emt 00:00:19]} 7. cxd5 {[%clk 01:32:07]}
{[%emt 00:00:48]} exd5 {[%clk 01:32:54]} {[%emt 00:00:13]} 8. Bd3 {[%clk
01:31:41]} {[%emt 00:00:55]} Bb7 {[%clk 01:33:17]} {[%emt 00:00:08]} 9. O-O
{[%clk 01:31:53]} {[%emt 00:00:18]} Bd6 {[%clk 01:32:08]} {[%emt 00:01:39]} 10.
Qc2 {[%clk 01:26:39]} {[%emt 00:05:44]} c5 {[%clk 01:29:50]} {[%emt 00:02:48]}
11. dxc5 {[%clk 01:18:36]} {[%emt 00:08:33]} bxc5 {[%clk 01:30:09]} {[%emt
00:00:11]} 12. Ne2 {[%clk 01:18:45]} {[%emt 00:00:21]} Qe7 {[%clk 01:22:23]}
{[%emt 00:08:17]} 13. Ng3 {[%clk 01:12:40]} {[%emt 00:06:34]} g6 {[%clk
01:20:22]} {[%emt 00:02:32]} 14. Rfe1 {[%clk 01:12:07]} {[%emt 00:01:03]} Ne4
{[%clk 01:18:05]} {[%emt 00:02:48]} 15. Bc3 {[%clk 01:11:02]} {[%emt 00:01:34]}
f5 {[%clk 01:11:55]} {[%emt 00:06:40]} 16. Rad1 {[%clk 01:08:43]} {[%emt
00:02:48]} Nc6 {[%clk 01:08:08]} {[%emt 00:04:18]} 17. Qa4 {[%clk 00:52:02]}
{[%emt 00:17:10]} Rad8 {[%clk 00:38:28]} {[%emt 00:30:11]} 18. Bb5 {[%clk
00:47:19]} {[%emt 00:05:13]} Qc7 {[%clk 00:33:13]} {[%emt 00:05:46]} 19. Rxd5
{[%clk 00:24:18]} {[%emt 00:23:30]} Nxc3 {[%clk 00:30:00]} {[%emt 00:03:43]} 20.
bxc3 {[%clk 00:24:22]} {[%emt 00:00:26]} Ne5 {[%clk 00:30:27]} {[%emt
00:00:03]} 21. Rxe5 {[%clk 00:18:13]} {[%emt 00:06:40]} Bxe5 {[%clk 00:30:48]}
{[%emt 00:00:09]} 22. Ng5 {[%clk 00:18:36]} {[%emt 00:00:07]} Bd5 {[%clk
00:23:41]} {[%emt 00:07:37]} 23. c4 {[%clk 00:16:45]} {[%emt 00:02:20]} Bf7
{[%clk 00:22:42]} {[%emt 00:01:29]} 24. Nxf7 {[%clk 00:16:50]} {[%emt
00:00:25]} Rxf7 {[%clk 00:23:08]} {[%emt 00:00:04]} 25. Bc6 {[%clk 00:17:12]}
{[%emt 00:00:08]} Rf6 {[%clk 00:18:59]} {[%emt 00:04:39]} 26. Bd5+ {[%clk
00:14:48]} {[%emt 00:02:53]} Kg7 {[%clk 00:19:24]} {[%emt 00:00:06]} 27. f4
{[%clk 00:14:25]} {[%emt 00:00:52]} Bc3 {[%clk 00:19:30]} {[%emt 00:00:25]} 28.
Rb1 {[%clk 00:12:22]} {[%emt 00:02:33]} Rb6 {[%clk 00:19:07]} {[%emt 00:00:53]}
29. Rb3 {[%clk 00:11:47]} {[%emt 00:01:04]} Rxb3 {[%clk 00:18:10]} {[%emt
00:01:28]} 30. axb3 {[%clk 00:12:04]} {[%emt 00:00:13]} Rb8 {[%clk 00:16:31]}
{[%emt 00:02:08]} 31. Kf2 {[%clk 00:09:42]} {[%emt 00:02:52]} Qa5 {[%clk
00:06:14]} {[%emt 00:10:48]} 32. Qd7+ {[%clk 00:08:20]} {[%emt 00:01:52]} Kh8
{[%clk 00:06:36]} {[%emt 00:00:08]} 33. Ne2 {[%clk 00:07:51]} {[%emt 00:00:59]}
Bg7 {[%clk 00:06:40]} {[%emt 00:00:27]} 34. h3 {[%clk 00:05:52]} {[%emt
00:02:28]} Qb6 {[%clk 00:04:23]} {[%emt 00:02:48]} 35. g4 {[%clk 00:03:26]}
{[%emt 00:02:56]} a5 {[%clk 00:04:14]} {[%emt 00:00:39]} 36. gxf5 {[%clk
00:03:03]} {[%emt 00:00:53]} Qf6 {[%clk 00:00:40]} {[%emt 00:04:04]} 37. fxg6
{[%clk 00:02:46]} {[%emt 00:00:46]} hxg6 {[%clk 00:00:43]} {[%emt 00:00:28]} 38.
Qa4 {[%clk 00:02:04]} {[%emt 00:01:12]} Qb6 {[%clk 00:00:51]} {[%emt 00:00:23]}
39. Qa2 {[%clk 00:01:20]} {[%emt 00:01:13]} Rf8 {[%clk 00:00:33]} {[%emt
00:00:48]} 40. Kg2 {[%clk 00:00:53]} {[%emt 00:00:56]} Qb4 {[%clk 00:00:40]}
{[%emt 00:00:25]} 41. Qc2 {[%clk 00:27:48]} {[%emt 00:03:34]} Qe1 {[%clk
00:28:58]} {[%emt 00:02:13]} 42. Bf3 {[%clk 00:27:12]} {[%emt 00:01:05]} Kh7
{[%clk 00:27:40]} {[%emt 00:01:49]} 43. Qd3 {[%clk 00:25:43]} {[%emt 00:01:58]}
Bf6 {[%clk 00:13:22]} {[%emt 00:14:49]} 44. Qd7+ {[%clk 00:19:38]} {[%emt
00:06:35]} Kh6 {[%clk 00:13:48]} {[%emt 00:00:03]} 45. Qd6 {[%clk 00:18:15]}
{[%emt 00:01:52]} Kg7 {[%clk 00:13:55]} {[%emt 00:00:24]} 46. Qxc5 {[%clk
00:11:48]} {[%emt 00:07:32]} Bh4 {[%clk 00:13:19]} {[%emt 00:00:29]} 47. Qd4+
{[%clk 00:08:44]} {[%emt 00:03:35]} Kh6 {[%clk 00:08:34]} {[%emt 00:05:18]} 48.
e4 {[%clk 00:08:45]} {[%emt 00:00:26]} Rd8 {[%clk 00:06:27]} {[%emt 00:02:38]}
49. Qc5 {[%clk 00:08:33]} {[%emt 00:01:27]} Rd2 {[%clk 00:01:58]} {[%emt
00:04:12]} 50. Qf8+ {[%clk 00:08:43]} {[%emt 00:00:21]} Kh7 {[%clk 00:02:24]}
{[%emt 00:00:08]} 51. Qf7+ {[%clk 00:09:08]} Kh6 {[%clk 00:02:50]} {[%emt
00:00:07]} 52. Qf8+ {[%clk 00:09:32]} {[%emt 00:00:03]} 1/2-1/2

[Event "GMT Biel Chess Festival classic"]
[Site "Biel/Bienne, Switzerland"]
[Date "????.??.??"]
[Round "3.2"]
[White "Keymer, Vincent"]
[Black "Naiditsch, Arkadij"]
[Result "1-0"]
[TimeControl "90 minutes for the first 40 moves + 30 minutes for the rest of the game with an addition of 30 seconds per move starting from move one"]
[WhiteTitle "GM"]
[BlackTitle "GM"]
[WhiteFideId "12940690"]
[BlackFideId "4650891"]
[WhiteElo "2487"]
[BlackElo "2626"]

1. d4 {[%clk 01:30:56]} {[%emt 00:00:04]} Nf6 {[%clk 01:30:52]} {[%emt
00:00:08]} 2. c4 {[%clk 01:31:23]} {[%emt 00:00:03]} g6 {[%clk 01:31:12]}
{[%emt 00:00:09]} 3. g3 {[%clk 01:31:49]} {[%emt 00:00:05]} Bg7 {[%clk
01:31:20]} {[%emt 00:00:22]} 4. Bg2 {[%clk 01:32:14]} {[%emt 00:00:05]} O-O
{[%clk 01:31:23]} {[%emt 00:00:26]} 5. Nc3 {[%clk 01:32:35]} {[%emt 00:00:10]}
d6 {[%clk 01:31:21]} {[%emt 00:00:31]} 6. Nf3 {[%clk 01:33:00]} {[%emt
00:00:05]} c6 {[%clk 01:31:29]} {[%emt 00:00:22]} 7. e4 {[%clk 01:33:12]}
{[%emt 00:00:17]} Bg4 {[%clk 01:26:57]} {[%emt 00:05:02]} 8. h3 {[%clk
01:33:24]} {[%emt 00:00:19]} Bxf3 {[%clk 01:26:27]} {[%emt 00:00:59]} 9. Bxf3
{[%clk 01:33:49]} {[%emt 00:00:05]} e5 {[%clk 01:25:23]} {[%emt 00:01:34]} 10.
d5 {[%clk 01:25:18]} {[%emt 00:09:02]} cxd5 {[%clk 01:22:07]} {[%emt 00:03:45]}
11. cxd5 {[%clk 01:25:27]} {[%emt 00:00:21]} a5 {[%clk 01:21:46]} {[%emt
00:00:51]} 12. Be3 {[%clk 01:17:38]} {[%emt 00:08:19]} Na6 {[%clk 01:20:43]}
{[%emt 00:01:33]} 13. h4 {[%clk 01:16:38]} {[%emt 00:01:30]} h5 {[%clk
01:11:09]} {[%emt 00:10:03]} 14. g4 {[%clk 01:03:25]} {[%emt 00:13:44]} hxg4
{[%clk 01:05:53]} {[%emt 00:05:45]} 15. Bxg4 {[%clk 00:59:13]} {[%emt
00:04:43]} Nxg4 {[%clk 00:40:43]} {[%emt 00:25:39]} 16. Qxg4 {[%clk 00:59:37]}
{[%emt 00:00:06]} Nb4 {[%clk 00:34:43]} {[%emt 00:06:30]} 17. h5 {[%clk
00:41:27]} {[%emt 00:18:40]} f5 {[%clk 00:22:11]} {[%emt 00:13:02]} 18. Qxg6
{[%clk 00:32:05]} {[%emt 00:09:53]} Rf6 {[%clk 00:22:09]} {[%emt 00:00:32]} 19.
Qg2 {[%clk 00:30:26]} {[%emt 00:02:08]} Kh7 {[%clk 00:22:14]} {[%emt 00:00:25]}
20. exf5 {[%clk 00:24:48]} {[%emt 00:06:09]} Nc2+ {[%clk 00:13:27]} {[%emt
00:09:16]} 21. Kd2 {[%clk 00:24:19]} {[%emt 00:00:59]} Nxe3 {[%clk 00:13:45]}
{[%emt 00:00:11]} 22. fxe3 {[%clk 00:24:28]} {[%emt 00:00:22]} Qb6 {[%clk
00:14:07]} {[%emt 00:00:08]} 23. Kc2 {[%clk 00:21:32]} {[%emt 00:03:27]} Rc8
{[%clk 00:13:24]} {[%emt 00:01:13]} 24. Rag1 {[%clk 00:21:00]} {[%emt
00:01:01]} Bh6 {[%clk 00:09:04]} {[%emt 00:04:50]} 25. Kb1 {[%clk 00:20:51]}
{[%emt 00:00:39]} Qxe3 {[%clk 00:09:11]} {[%emt 00:00:23]} 26. Ne4 {[%clk
00:19:42]} {[%emt 00:01:39]} Rff8 {[%clk 00:09:31]} {[%emt 00:00:11]} 27. Qg6+
{[%clk 00:19:20]} {[%emt 00:00:52]} Kh8 {[%clk 00:09:54]} {[%emt 00:00:07]} 28.
Nf6 {[%clk 00:19:41]} {[%emt 00:00:09]} 1-0

[Event "GMT Biel Chess Festival classic"]
[Site "Biel/Bienne, Switzerland"]
[Date "????.??.??"]
[Round "3.3"]
[White "Wojtaszek, Radoslaw"]
[Black "Adams, Michael"]
[Result "1/2-1/2"]
[TimeControl "90 minutes for the first 40 moves + 30 minutes for the rest of the game with an addition of 30 seconds per move starting from move one"]
[WhiteTitle "GM"]
[BlackTitle "GM"]
[WhiteFideId "1118358"]
[BlackFideId "400041"]
[WhiteElo "2719"]
[BlackElo "2701"]

1. d4 {[%clk 01:30:57]} {[%emt 00:00:03]} Nf6 {[%clk 01:30:55]} {[%emt
00:00:05]} 2. c4 {[%clk 01:31:22]} {[%emt 00:00:04]} e6 {[%clk 01:31:20]}
{[%emt 00:00:06]} 3. Nf3 {[%clk 01:31:48]} {[%emt 00:00:04]} d5 {[%clk
01:31:46]} {[%emt 00:00:04]} 4. Nc3 {[%clk 01:32:11]} {[%emt 00:00:07]} Be7
{[%clk 01:32:10]} {[%emt 00:00:06]} 5. Bf4 {[%clk 01:32:34]} {[%emt 00:00:07]}
O-O {[%clk 01:32:33]} {[%emt 00:00:08]} 6. e3 {[%clk 01:32:59]} {[%emt
00:00:04]} Nbd7 {[%clk 01:32:55]} {[%emt 00:00:08]} 7. Be2 {[%clk 01:33:22]}
{[%emt 00:00:06]} dxc4 {[%clk 01:32:37]} {[%emt 00:00:49]} 8. O-O {[%clk
01:33:41]} {[%emt 00:00:10]} c5 {[%clk 01:32:16]} {[%emt 00:00:51]} 9. dxc5
{[%clk 01:33:57]} {[%emt 00:00:15]} Nxc5 {[%clk 01:32:08]} {[%emt 00:00:39]} 10.
Bxc4 {[%clk 01:34:16]} {[%emt 00:00:10]} Qxd1 {[%clk 01:31:47]} {[%emt
00:00:51]} 11. Rfxd1 {[%clk 01:34:36]} {[%emt 00:00:10]} b6 {[%clk 01:31:51]}
{[%emt 00:00:26]} 12. Ne5 {[%clk 01:34:51]} {[%emt 00:00:14]} Bb7 {[%clk
01:29:20]} {[%emt 00:03:02]} 13. f3 {[%clk 01:35:13]} {[%emt 00:00:07]} Rfd8
{[%clk 01:14:03]} {[%emt 00:15:47]} 14. e4 {[%clk 01:35:33]} {[%emt 00:00:10]}
Kf8 {[%clk 01:09:49]} {[%emt 00:04:45]} 15. Be2 {[%clk 01:31:33]} {[%emt
00:04:29]} Ncd7 {[%clk 00:51:29]} {[%emt 00:18:51]} 16. Nc4 {[%clk 01:26:45]}
{[%emt 00:05:17]} Bc6 {[%clk 00:50:38]} {[%emt 00:01:21]} 17. Rac1 {[%clk
01:24:38]} {[%emt 00:02:37]} Ne8 {[%clk 00:45:08]} {[%emt 00:06:01]} 18. Kf1
{[%clk 01:12:44]} {[%emt 00:12:23]} h6 {[%clk 00:44:15]} {[%emt 00:01:24]} 19.
a3 {[%clk 01:10:25]} {[%emt 00:02:48]} Bg5 {[%clk 00:43:04]} {[%emt 00:01:41]}
20. Be3 {[%clk 01:06:30]} {[%emt 00:04:25]} Bxe3 {[%clk 00:41:17]} {[%emt
00:02:18]} 21. Nxe3 {[%clk 01:06:54]} {[%emt 00:00:05]} Nc5 {[%clk 00:34:23]}
{[%emt 00:07:25]} 22. b4 {[%clk 00:57:53]} {[%emt 00:09:31]} Nb3 {[%clk
00:34:00]} {[%emt 00:00:53]} 23. Rxd8 {[%clk 00:55:06]} {[%emt 00:03:18]} Rxd8
{[%clk 00:34:27]} {[%emt 00:00:03]} 24. Rd1 {[%clk 00:55:17]} {[%emt 00:00:19]}
Rxd1+ {[%clk 00:32:32]} {[%emt 00:02:25]} 25. Bxd1 {[%clk 00:55:40]} {[%emt
00:00:06]} Nd4 {[%clk 00:32:58]} {[%emt 00:00:04]} 26. e5 {[%clk 00:54:19]}
{[%emt 00:01:51]} Ke7 {[%clk 00:29:49]} {[%emt 00:03:40]} 27. Kf2 {[%clk
00:53:32]} {[%emt 00:01:17]} Nc7 {[%clk 00:26:32]} {[%emt 00:03:47]} 28. f4
{[%clk 00:51:11]} {[%emt 00:02:50]} f6 {[%clk 00:24:47]} {[%emt 00:02:17]} 29.
Ne2 {[%clk 00:37:47]} {[%emt 00:13:54]} fxe5 {[%clk 00:22:13]} {[%emt
00:03:04]} 30. fxe5 {[%clk 00:37:17]} {[%emt 00:00:59]} Nxe2 {[%clk 00:18:59]}
{[%emt 00:03:45]} 31. Bxe2 {[%clk 00:37:40]} {[%emt 00:00:06]} Nd5 {[%clk
00:17:44]} {[%emt 00:01:45]} 32. g3 {[%clk 00:31:57]} {[%emt 00:06:13]} Nxe3
{[%clk 00:15:04]} {[%emt 00:03:11]} 33. Kxe3 {[%clk 00:32:19]} {[%emt
00:00:07]} g5 {[%clk 00:13:35]} {[%emt 00:01:59]} 34. h4 {[%clk 00:32:41]}
{[%emt 00:00:08]} gxh4 {[%clk 00:12:59]} {[%emt 00:01:06]} 35. gxh4 {[%clk
00:33:06]} {[%emt 00:00:05]} Be8 {[%clk 00:12:57]} {[%emt 00:00:33]} 36. Kd4
{[%clk 00:33:11]} {[%emt 00:00:23]} Bc6 {[%clk 00:13:07]} {[%emt 00:00:21]} 37.
Bd1 {[%clk 00:33:27]} {[%emt 00:00:14]} Kd7 {[%clk 00:12:09]} {[%emt 00:01:29]}
38. a4 {[%clk 00:33:48]} {[%emt 00:00:09]} Ke7 {[%clk 00:10:39]} {[%emt
00:02:01]} 39. a5 {[%clk 00:34:08]} {[%emt 00:00:09]} Kd7 {[%clk 00:09:39]}
{[%emt 00:01:30]} 40. axb6 {[%clk 00:34:01]} {[%emt 00:00:36]} axb6 {[%clk
00:10:06]} {[%emt 00:00:04]} 41. Be2 {[%clk 00:33:47]} {[%emt 00:00:43]}
1/2-1/2